bitfinex/quotes_ETHUSD_20240604
["timestamp","ask_amount","ask_price","bid_price","bid_amount"]
[1717513189016,4.19402,3780.7,3779.9,3.97157122]
[1717513189205,0.57183254,3780.6,3779.9,3.97157122]
[1717513190080,2.64515,3780.5,3779.9,2.65030545]
[1717513190417,0.57183254,3780.4,3779.9,2.65030545]
[1717513191415,0.57183254,3780.4,3780.0,2.65030545]
[1717513191591,0.57183254,3780.4,3779.9,2.65030545]
[1717513192088,2.64515,3780.5,3779.9,2.65030545]
[1717513192416,0.57187852,3780.4,3779.9,2.65030545]
[1717513194293,0.57189086,3780.4,3779.9,2.65030545]
[1717513197194,0.57189086,3780.4,3780.0,1.32126577]
[1717513197398,0.57187669,3780.7,3780.1,2.65030545]
[1717513197600,0.57187669,3780.7,3780.1,3.97157122]
[1717513198206,0.57187669,3780.7,3780.2,1.32126577]
[1717513198415,0.57187669,3780.8,3780.2,1.32126577]
[1717513198610,0.57187669,3780.9,3780.2,1.32126577]
[1717513198816,0.57187669,3780.9,3780.3,0.74159512]
[1717513199109,0.57187669,3780.9,3780.4,1.32126577]
[1717513200392,0.57187669,3780.9,3780.6,0.799]
[1717513200698,0.57187669,3781.0,3780.7,1.32126577]
[1717513200898,0.571743,3781.1,3780.7,1.79779935]
[1717513202327,7.33,3781.2,3780.8,0.799]
[1717513202490,7.33,3781.2,3780.9,1.32126577]
[1717513203489,7.33,3781.2,3781.0,3.0703]
[1717513203821,7.33,3781.2,3781.1,1.32126577]
[1717513204052,7.33,3781.2,3781.1,1.76042235]
[1717513205599,7.33,3781.2,3781.1,1.32126577]
[1717513205804,11.60410568,3781.8,3781.1,1.32126577]
[1717513205997,10.02592,3781.9,3781.1,2.12026577]
[1717513205998,0.57168158,3781.7,3781.1,2.12026577]
[1717513206229,3.57168158,3781.8,3781.1,2.12026577]
[1717513206444,3.0,3781.8,3781.1,2.12026577]
[1717513206598,3.0,3781.8,3781.2,2.81311158]
[1717513206826,7.3817,3781.9,3781.4,0.799]
[1717513207019,7.3817,3781.9,3781.5,1.32126577]
[1717513208347,7.3817,3781.9,3781.6,0.799]
[1717513208717,7.3817,3781.9,3781.8,3.1356]
[1717513208912,7.3817,3781.9,3781.8,5.16699235]
[1717513210631,7.3817,3781.9,3781.8,4.36799235]
[1717513210854,7.3817,3781.9,3781.8,1.32126577]
[1717513211617,7.3817,3781.9,3781.2,0.47651158]
[1717513211820,0.0517,3781.9,3781.3,1.32126577]
[1717513212767,0.0517,3781.9,3781.3,2.12026577]
[1717513212973,0.0517,3781.9,3781.7,0.799]
[1717513213123,0.0517,3781.9,3781.8,1.32126577]
[1717513213325,0.0517,3781.9,3781.8,1.79772535]
[1717513213946,0.0517,3781.9,3781.8,2.34772535]
[1717513214360,0.0517,3781.9,3781.8,7.62082535]
[1717513216044,0.0517,3781.9,3781.8,4.83682535]
[1717513216924,0.0517,3781.9,3781.8,4.28682535]
[1717513217125,0.0517,3781.9,3781.8,1.79772535]
[1717513217371,0.0517,3781.9,3781.8,1.32126577]
[1717513224386,0.0517,3781.9,3781.8,3.64566577]
[1717513225778,0.0517,3781.9,3781.8,4.19566577]
[1717513228394,0.0517,3781.9,3781.8,1.32126577]
[1717513233363,0.0517,3781.9,3781.8,1.87126577]
[1717513233564,0.0517,3781.9,3781.8,2.60122535]
[1717513233860,0.0517,3781.9,3781.8,5.01012535]
[1717513237026,0.0517,3781.9,3781.8,7.79412535]
[1717513237572,0.0517,3781.9,3781.8,5.01012535]
[1717513238169,0.0517,3781.9,3781.8,2.05122535]
[1717513238524,0.0517,3781.9,3781.8,1.32126577]
[1717513242368,0.0517,3781.9,3781.2,2.6446]
[1717513242531,2.3526,3781.9,3781.3,1.32126577]
[1717513245331,2.64424,3781.8,3780.8,2.64489]
[1717513245532,2.64441,3781.6,3780.9,1.32126577]
[1717513245842,0.57156558,3781.5,3780.9,1.32126577]
[1717513248042,4.97997,3781.4,3780.4,2.64517]
[1717513248377,4.97997,3781.4,3780.6,2.64503]
[1717513248537,4.97997,3781.4,3780.7,1.32126577]
[1717513248740,4.97997,3781.4,3780.7,1.96419535]
[1717513251278,4.97997,3781.4,3780.7,1.32126577]
[1717513251884,2.64467,3781.2,3780.7,1.32126577]
[1717513252695,2.64467,3781.2,3780.2,2.64532]
[1717513252904,2.64467,3781.2,3780.3,1.32126577]
[1717513255891,2.64467,3781.2,3780.4,2.64522]
[1717513256054,2.64467,3781.2,3780.5,1.71791435]
[1717513256382,9.6654,3781.4,3780.6,2.64504]
[1717513256580,9.6654,3781.4,3780.7,1.32126577]
[1717513257130,9.6654,3781.4,3780.8,2.64493]
[1717513257419,9.6654,3781.4,3780.9,1.32126577]
[1717513257770,2.64459,3781.3,3780.4,2.64515]
[1717513257967,2.64459,3781.3,3780.5,1.32126577]
[1717513260999,2.64494,3780.8,3780.0,2.64549]
[1717513261329,2.64494,3780.8,3780.1,1.32126577]
[1717513261681,2.6451,3780.6,3779.6,2.64572]
[1717513261887,2.6451,3780.6,3779.9,1.32126577]
[1717513262410,2.6451,3780.6,3779.9,2.12448809]
[1717513263119,2.64527,3780.4,3779.9,0.80322232]
[1717513263323,2.64527,3780.4,3779.2,2.64601]
[1717513264088,2.64527,3780.4,3779.9,1.32126577]
[1717513264390,2.3149,3780.5,3779.9,1.32126577]
[1717513265312,7.33,3780.9,3780.0,0.0529067]
[1717513265531,7.33,3780.9,3780.3,2.64528]
[1717513265712,7.33,3780.9,3780.5,2.64511]
[1717513266029,7.33,3780.9,3780.7,2.64501]
[1717513266325,7.33,3781.5,3780.8,1.32126577]
[1717513267421,2.64452,3781.4,3780.9,1.32126577]
[1717513267583,7.33,3781.5,3780.9,1.32126577]
[1717513267789,7.33,3781.5,3780.9,1.71789335]
[1717513267987,22.2361,3781.7,3781.0,2.64474]
[1717513267988,2.3361,3781.7,3781.0,2.64474]
[1717513268192,2.3361,3781.7,3781.1,1.32126577]
[1717513268623,7.3817,3781.9,3781.1,1.32126577]
[1717513269316,7.3817,3781.9,3781.2,2.64465]
[1717513269518,7.3817,3781.9,3781.3,1.32126577]
[1717513270630,0.0517,3781.9,3781.4,2.64446]
[1717513270863,0.0517,3781.9,3781.5,1.32126577]
[1717513271609,0.0517,3781.9,3781.6,2.64436]
[1717513271813,0.0517,3781.9,3781.7,1.32126577]
[1717513271980,0.0517,3781.9,3781.8,0.39656258]
[1717513272186,0.0517,3781.9,3781.8,1.71782835]
[1717513272387,0.0517,3781.9,3781.8,1.32126577]
[1717513281136,7.2817,3782.3,3781.8,1.32126577]
[1717513281335,7.2817,3782.3,3781.9,1.32126577]
[1717513282274,2.4423,3782.5,3781.9,1.32126577]
[1717513285040,2.64366,3782.7,3781.9,1.32126577]
[1717513285246,2.64366,3782.7,3781.9,1.71781335]
[1717513291571,2.44366,3782.7,3781.9,1.71781335]
[1717513292003,2.44366,3782.7,3782.0,2.64407]
[1717513292168,2.44366,3782.7,3782.1,1.32126577]
[1717513293261,7.2817,3782.8,3782.1,1.32126577]
[1717513293470,7.2817,3782.8,3782.1,1.77781822]
[1717513294367,0.57149084,3782.7,3782.1,1.77781822]
[1717513294561,7.2817,3782.8,3782.2,2.64395]
[1717513294783,2.64364,3782.7,3781.7,2.6443]
[1717513294989,2.94453688,3782.6,3781.8,1.32126577]
[1717513295778,2.64376,3782.5,3781.8,1.32126577]
[1717513295981,0.57153688,3782.4,3781.8,1.32126577]
[1717513296178,2.64376,3782.5,3781.8,1.32126577]
[1717513296495,0.57153068,3782.4,3781.8,1.32126577]
[1717513297799,2.64389,3782.3,3781.8,1.32126577]
[1717513298003,0.57153068,3782.2,3781.8,1.32126577]
[1717513298622,0.57153068,3782.5,3781.8,1.32126577]
[1717513298817,0.57153068,3782.5,3781.9,0.63694758]
[1717513299022,0.57153068,3782.5,3782.0,1.32126577]
[1717513301632,2.64382,3782.4,3782.0,1.32126577]
[1717513301929,0.57153068,3782.3,3782.0,1.32126577]
[1717513302224,0.57154981,3782.3,3782.0,1.32126577]
[1717513302982,0.57154981,3782.3,3781.7,2.6443]
[1717513303185,0.57154981,3782.3,3781.8,1.32126577]
[1717513303530,2.64402,3782.2,3781.3,2.64453]
[1717513303819,0.57154981,3782.7,3780.5,1.08152991]
[1717513303820,2.64419,3781.9,3781.4,1.32126577]
[1717513304021,0.57154981,3781.8,3781.4,1.32126577]
[1717513305013,2.64434,3781.7,3780.9,5.04665]
[1717513305199,2.64434,3781.7,3781.0,1.32126577]
[1717513305200,0.57163402,3781.6,3781.0,1.32126577]
[1717513307001,2.64434,3781.7,3781.0,1.95805735]
[1717513307418,2.2518,3782.0,3781.1,2.64469]
[1717513307619,0.57161135,3782.0,3781.2,1.37415285]
[1717513307847,0.57161135,3782.0,3781.3,0.05288644]
[1717513308048,0.57161135,3782.0,3781.4,1.32126577]
[1717513309171,0.57161135,3782.0,3781.5,2.3909]
[1717513309469,3.57161135,3782.3,3781.6,1.32126577]
[1717513309613,0.57161135,3782.2,3781.6,1.32126577]
[1717513311853,2.4279,3782.1,3781.0,2.64474]
[1717513314457,2.64443,3781.6,3780.7,1.32126577]
[1717513314657,2.64456,3781.4,3780.7,1.32126577]
[1717513314869,0.57165632,3781.3,3780.7,1.32126577]
[1717513315073,2.64456,3781.4,3780.7,1.32126577]
[1717513315260,0.57172991,3781.3,3780.7,1.32126577]
[1717513316799,2.64468,3781.2,3780.2,2.64532]
[1717513316979,0.57174535,3781.1,3780.3,1.32126577]
[1717513317907,1.913,3781.0,3779.8,82.934]
[1717513318052,0.75,3780.6,3779.8,82.934]
[1717513318374,3.3951,3780.6,3779.8,82.934]
[1717513318540,0.57174535,3780.5,3779.8,82.934]
[1717513318867,2.64524,3780.4,3779.8,82.934]
[1717513323372,2.64548,3780.1,3779.8,82.934]
[1717513327171,2.3862,3780.3,3779.8,83.28359557]
[1717513327572,2.64518,3780.5,3779.8,83.28359557]
[1717513327825,3.39518,3780.5,3779.8,83.28359557]
[1717513327973,3.39518,3780.5,3779.8,82.934]
[1717513327974,2.2559,3780.4,3779.8,82.934]
[1717513328272,2.64531,3780.3,3779.8,82.934]
[1717513328673,2.2559,3780.4,3779.8,82.934]
[1717513328919,7.2817,3780.8,3779.9,1.32126577]
[1717513329129,7.2817,3780.8,3780.0,5.07648]
[1717513329329,7.2817,3780.8,3780.1,3.97157122]
[1717513330207,4.90091,3780.7,3779.8,82.934]
[1717513330524,5.65091,3780.7,3779.9,1.32126577]
[1717513331216,4.90091,3780.7,3779.9,1.32126577]
[1717513331390,2.64526,3780.4,3779.8,82.934]
[1717513335016,2.64526,3780.4,3779.9,1.32126577]
[1717513335217,0.75,3780.6,3780.0,2.65030545]
[1717513335420,9.92668,3780.8,3780.1,1.32126577]
[1717513335620,10.67668,3780.8,3780.1,1.32126577]
[1717513335779,7.2817,3780.8,3780.1,1.32126577]
[1717513335982,7.2817,3780.8,3780.2,0.66171312]
[1717513336178,7.2817,3780.8,3780.2,1.98297889]
[1717513336424,24.53051568,3781.2,3780.4,2.3491]
[1717513336596,10.67641,3781.2,3780.4,3.67036577]
[1717513336799,9.92641,3781.2,3780.4,3.67036577]
[1717513337036,9.92641,3781.2,3780.5,0.69773989]
[1717513338307,10.67641,3781.2,3780.2,3.30703312]
[1717513338535,2.64489,3780.9,3780.2,1.32126577]
[1717513345922,2.64489,3780.9,3780.3,1.32126577]
[1717513346122,2.3775,3781.1,3780.3,3.96654577]
[1717513346318,2.3775,3781.1,3780.4,0.39665458]
[1717513346549,7.2817,3781.2,3780.5,3.96640577]
[1717513349065,2.64473,3781.1,3780.5,1.32126577]
[1717513350664,2.64473,3781.1,3780.0,4.92100545]
[1717513350665,2.64495,3780.8,3780.0,2.65030545]
[1717513350860,2.64495,3780.8,3780.1,2.65030545]
[1717513351963,2.64495,3780.8,3780.1,3.97157122]
[1717513352769,2.4135,3781.1,3780.2,1.32126577]
[1717513352956,2.4135,3781.1,3780.3,2.64528]
[1717513353271,9.92641,3781.2,3780.4,1.32126577]
[1717513353472,9.92641,3781.2,3780.5,0.63825458]
[1717513353671,9.92641,3781.2,3780.5,1.95952035]
[1717513353855,7.2817,3781.2,3780.6,1.32126577]
[1717513354674,7.2817,3781.2,3780.6,3.96632577]
[1717513354858,7.2817,3781.2,3780.9,2.64487]
[1717513355069,7.2817,3781.2,3781.0,1.58575277]
[1717513358386,2.64444,3781.6,3781.0,1.58575277]
[1717513358770,7.2817,3781.8,3781.1,2.64472]
[1717513358974,7.2817,3781.8,3781.3,2.64456]
[1717513359196,2.64414,3782.0,3781.4,1.71784835]
[1717513360153,7.2817,3782.3,3781.6,1.913]
[1717513360354,11.60410568,3782.6,3781.7,1.32126577]
[1717513360652,9.735,3782.7,3781.7,1.32126577]
[1717513360922,2.64375,3782.5,3781.7,1.32126577]
[1717513361073,3.93877865,3782.5,3781.5,2.64445]
[1717513361406,0.57153654,3782.4,3781.5,3.96571577]
[1717513361553,0.57156623,3782.4,3781.5,3.96571577]
[1717513361751,2.64375,3782.5,3781.5,3.96571577]
[1717513362056,2.64375,3782.5,3781.4,0.39658258]
[1717513362057,2.64375,3782.5,3781.7,4.93229]
[1717513362419,2.64375,3782.5,3781.7,3.96555577]
[1717513362627,1.237875,3782.4,3781.7,1.32126577]
[1717513362805,1.80946119,3782.4,3781.7,1.32126577]
[1717513364919,2.64391,3782.3,3781.7,1.32126577]
[1717513365141,0.57159368,3782.2,3781.3,2.64457]
[1717513365420,2.64404,3782.1,3781.4,1.32126577]
[1717513365635,0.57159368,3782.0,3781.4,1.32126577]
[1717513366779,0.57159368,3782.0,3780.7,2.4519]
[1717513366780,2.4413,3781.8,3780.7,2.4519]
[1717513367007,2.4413,3781.8,3780.8,1.32126577]
[1717513367209,3.01289368,3781.8,3780.8,1.32126577]
[1717513367415,3.68208083,3781.8,3780.8,1.32126577]
[1717513367609,0.57168437,3781.7,3780.8,1.32126577]
[1717513367813,3.21605437,3781.7,3780.8,1.32126577]
[1717513368010,2.64437,3781.7,3780.8,1.32126577]
[1717513371429,2.64437,3781.7,3780.8,3.96616577]
[1717513371646,2.64437,3781.7,3780.9,0.59893472]
[1717513371799,2.64437,3781.7,3781.0,1.32126577]
[1717513373814,2.4413,3781.8,3781.0,1.32126577]
[1717513374020,0.57161183,3782.0,3781.1,2.64472]
[1717513374205,0.57161183,3782.0,3781.2,1.77775782]
[1717513374411,5.05119,3782.1,3781.2,1.77775782]
[1717513376270,7.2817,3782.2,3781.7,2.6443]
[1717513376382,5.4896,3782.3,3781.8,1.32126577]
[1717513376591,2.4896,3782.3,3781.8,1.32126577]
[1717513376904,5.4896,3782.3,3781.8,1.32126577]
[1717513378931,2.64383,3782.4,3781.8,1.71782235]
[1717513379491,2.2677,3782.6,3781.8,1.71782235]
[1717513379739,2.83922727,3782.6,3781.8,1.71782235]
[1717513380034,2.83922727,3782.6,3781.9,5.12933]
[1717513380035,0.57152727,3782.6,3781.9,5.12933]
[1717513380194,0.57152727,3782.6,3782.0,2.00598101]
[1717513380525,7.2817,3782.7,3782.0,2.00598101]
[1717513381001,4.9168,3782.6,3781.8,0.39655658]
[1717513381193,4.9168,3782.6,3781.9,1.32126577]
[1717513381393,0.57153505,3782.5,3781.9,1.32126577]
[1717513383216,4.9168,3782.6,3781.9,1.32126577]
[1717513383436,0.57152601,3782.5,3781.9,1.32126577]
[1717513385048,0.57154739,3782.5,3781.9,1.32126577]
[1717513389446,2.6437,3782.6,3782.0,2.72384958]
[1717513389655,0.57152128,3782.5,3782.1,1.32126577]
[1717513389820,2.6437,3782.6,3782.1,1.32126577]
[1717513392693,14.07500568,3783.0,3781.4,5.03985]
[1717513392694,2.64383,3782.4,3781.4,5.03985]
[1717513392875,2.64383,3782.4,3781.5,1.87089998]
[1717513394169,0.57157933,3782.3,3781.5,1.87089998]
[1717513394537,2.64383,3782.4,3781.5,1.87089998]
[1717513396472,2.64403,3782.1,3781.5,1.32126577]
[1717513396644,2.2773,3782.0,3781.1,2.3427]
[1717513396850,2.2773,3782.0,3781.2,1.32126577]
[1717513397646,2.64424,3781.9,3781.2,1.32126577]
[1717513399368,2.64431,3781.7,3781.2,1.32126577]
[1717513400862,0.57167345,3781.6,3781.2,1.32126577]
[1717513401065,2.64446,3781.5,3780.7,2.2942]
[1717513401287,2.64446,3781.5,3780.8,1.81518677]
[1717513401976,2.64446,3781.5,3780.8,1.32126577]
[1717513402153,2.64467,3781.2,3780.2,4.91136]
[1717513402477,4.3963,3781.4,3779.8,83.48731591]
[1717513402478,2.64481,3781.0,3780.0,2.266]
[1717513402772,2.64481,3781.0,3780.1,2.65030545]
[1717513403769,2.64481,3781.0,3780.2,1.32126577]
[1717513404447,2.324,3780.9,3780.2,1.32126577]
[1717513406471,2.324,3780.9,3779.8,82.934]
[1717513406472,2.6452,3780.5,3779.8,82.934]
[1717513406668,2.90972,3780.5,3779.8,84.25526577]
[1717513406972,2.6452,3780.5,3779.8,84.25526577]
[1717513415378,2.64537,3780.2,3779.8,82.934]
[1717513415681,4.95507,3780.2,3779.8,82.934]
[1717513417339,2.64537,3780.2,3779.8,82.934]
[1717513418478,2.64537,3780.2,3779.8,85.58430545]
[1717513419383,2.64537,3780.2,3779.8,82.934]
[1717513423288,2.64557,3779.9,3779.8,82.934]
[1717513424602,5.64557,3779.9,3779.8,82.934]
[1717513424963,8.87517,3779.9,3779.8,82.934]
[1717513425578,9.44722541,3779.9,3779.8,82.934]
[1717513426168,10.58324327,3779.9,3779.8,82.934]
[1717513429219,10.01119254,3779.9,3779.8,82.934]
[1717513429372,10.58322926,3779.9,3779.8,82.934]
[1717513431110,9.44720672,3779.9,3779.8,82.934]
[1717513431306,6.96760672,3779.9,3779.8,82.934]
[1717513431464,6.39557,3779.9,3779.8,82.934]
[1717513432318,6.96755845,3779.9,3779.8,82.934]
[1717513433115,9.31225845,3779.9,3779.8,82.934]
[1717513433882,10.24348429,3779.9,3779.8,82.934]
[1717513434625,6.96755845,3779.9,3779.8,82.934]
[1717513434840,6.39557,3779.9,3779.8,82.934]
[1717513434981,6.96753401,3779.9,3779.8,82.934]
[1717513435183,1.32196401,3779.9,3779.8,82.934]
[1717513435381,0.75,3779.9,3779.8,82.934]
[1717513435579,9.92705,3780.3,3779.8,85.58430545]
[1717513435824,9.92705,3780.3,3779.8,82.934]
[1717513436187,10.67705,3780.3,3779.8,82.934]
[1717513439115,0.57191351,3780.2,3779.8,82.934]
[1717513439895,9.92705,3780.3,3779.8,82.934]
[1717513440305,10.67705,3780.3,3779.8,82.934]
[1717513441325,9.92705,3780.3,3779.8,85.58430545]
[1717513441490,9.92705,3780.3,3779.9,2.3859]
[1717513441991,7.2817,3780.3,3779.9,6.35270577]
[1717513442720,11.60410568,3780.7,3780.1,2.64543]
[1717513443028,11.60410568,3780.7,3780.2,1.95652535]
[1717513443840,7.2817,3781.2,3780.6,2.64503]
[1717513444040,11.60410568,3781.5,3780.6,1.32126577]
[1717513444041,14.24857568,3781.5,3780.6,1.32126577]
[1717513444222,2.64465,3781.3,3780.6,1.32126577]
[1717513444425,2.64465,3781.3,3780.6,1.69482235]
[1717513445044,11.60410568,3781.5,3780.7,1.32126577]
[1717513445335,7.2817,3781.6,3780.8,5.07201]
[1717513445569,7.2817,3781.6,3780.9,1.32126577]
[1717513445732,7.2817,3781.6,3781.0,0.63932758]
[1717513446065,7.2817,3781.6,3781.1,1.32126577]
[1717513446367,7.2817,3781.6,3781.0,0.63932758]
[1717513446517,2.64449,3781.5,3780.8,2.4271]
[1717513446716,3.39449,3781.5,3780.3,4.96172]
[1717513446966,3.39449,3781.5,3780.5,2.64508]
[1717513447125,3.39449,3781.5,3780.7,2.64497]
[1717513447330,7.2817,3781.6,3780.9,2.4719]
[1717513447546,7.2817,3781.6,3781.0,4.60984935]
[1717513449015,2.64418,3781.9,3781.0,4.60984935]
[1717513449215,3.0,3781.8,3781.0,4.60984935]
[1717513449865,2.64436,3781.7,3780.9,2.4719]
[1717513450018,3.39436,3781.7,3780.6,2.64503]
[1717513450221,3.39436,3781.7,3780.7,1.32126577]
[1717513450522,7.113266,3781.7,3780.7,1.32126577]
[1717513450726,2.64456,3781.4,3780.6,2.64503]
[1717513451026,1.913,3781.6,3780.0,2.3209]
[1717513451224,0.75,3781.0,3780.0,2.3209]
[1717513451566,0.75,3781.0,3780.1,2.65030545]
[1717513451809,0.75,3781.0,3780.0,2.3209]
[1717513452259,2.64498,3780.8,3779.8,85.57959]
[1717513452460,2.64498,3780.8,3779.9,1.32126577]
[1717513453182,3.39498,3780.8,3779.9,1.32126577]
[1717513453493,2.64521,3780.5,3779.8,82.934]
[1717513456263,3.39521,3780.5,3779.8,82.934]
[1717513456579,2.6454,3780.2,3779.8,82.934]
[1717513461018,5.0787,3780.2,3779.8,82.934]
[1717513461690,5.8287,3780.2,3779.8,82.934]
[1717513463381,6.41157,3780.2,3779.8,82.934]
[1717513464118,2.6455,3780.0,3779.8,82.934]
[1717513464340,3.0,3779.9,3779.8,82.934]
[1717513465533,3.57200241,3779.9,3779.8,82.934]
[1717513465897,3.0,3779.9,3779.8,82.934]
[1717513468160,3.941167,3779.9,3779.8,82.934]
[1717513470411,4.51318801,3779.9,3779.8,82.934]
[1717513470841,3.941167,3779.9,3779.8,82.934]
[1717513471159,4.51318933,3779.9,3779.8,82.934]
[1717513471533,6.404567,3779.9,3779.8,82.934]
[1717513471899,6.97659836,3779.9,3779.8,82.934]
[1717513472702,11.53516836,3779.9,3779.8,82.934]
[1717513472907,20.44066336,3779.9,3779.8,82.934]
[1717513473149,14.18073836,3779.9,3779.8,82.934]
[1717513473306,14.180792,3779.9,3779.8,82.934]
[1717513474508,11.535222,3779.9,3779.8,82.934]
[1717513474911,6.217655,3779.9,3779.8,82.934]
[1717513475155,5.64557,3779.9,3779.8,82.934]
[1717513475667,2.64557,3779.9,3779.8,82.934]
[1717513476465,5.11897,3779.9,3779.8,82.934]
[1717513477302,5.64557,3779.9,3779.8,82.934]
[1717513477480,2.64557,3779.9,3779.8,82.934]
[1717513477684,5.64557,3779.9,3779.8,82.934]
[1717513477988,6.476427,3779.9,3779.8,82.934]
[1717513478202,8.727927,3779.9,3779.8,82.934]
[1717513478343,9.2999339,3779.9,3779.8,82.934]
[1717513478939,18.7743189,3779.9,3779.8,82.934]
[1717513479649,11.9455039,3779.9,3779.8,82.934]
[1717513480047,18.8071999,3779.9,3779.8,82.934]
[1717513480369,17.5382729,3779.9,3779.8,82.934]
[1717513480566,16.6366069,3779.9,3779.8,82.934]
[1717513480773,11.9455039,3779.9,3779.8,82.934]
[1717513481388,19.2272039,3779.9,3779.8,82.934]
[1717513481908,21.1402039,3779.9,3779.8,82.934]
[1717513482085,16.5816339,3779.9,3779.8,82.934]
[1717513482955,13.4992769,3779.9,3779.8,82.934]
[1717513483265,10.4992769,3779.9,3779.8,82.934]
[1717513483581,9.92727,3779.9,3779.8,82.934]
[1717513484470,7.2817,3779.9,3779.8,82.934]
[1717513486000,7.2817,3780.6,3779.8,84.25526577]
[1717513486168,7.2817,3780.6,3779.9,2.65030545]
[1717513486979,7.2817,3780.6,3780.0,1.32126577]
[1717513490119,14.24915568,3780.7,3780.0,1.32126577]
[1717513490120,2.64505,3780.7,3780.0,1.32126577]
[1717513490606,2.64505,3780.7,3779.9,2.65030545]
[1717513490824,3.39505,3780.7,3780.0,2.65030545]
[1717513493220,3.39505,3780.7,3780.0,3.97157122]
[1717513493428,2.64505,3780.7,3780.0,3.97157122]
[1717513495606,7.2817,3781.0,3780.1,1.32126577]
[1717513495802,0.75,3780.9,3780.2,2.4325]
[1717513496116,7.2817,3781.0,3780.3,1.96167289]
[1717513496642,7.2817,3781.0,3780.5,2.44]
[1717513496842,7.2817,3781.0,3780.6,1.32126577]
[1717513498051,7.2817,3781.0,3780.3,0.64040712]
[1717513498220,7.2817,3781.0,3780.1,2.3026]
[1717513498420,7.2817,3781.0,3780.1,3.62386577]
[1717513498614,2.64488,3780.9,3780.1,3.62386577]
[1717513499264,2.64509,3780.6,3780.0,2.65030545]
[1717513499616,2.64531,3780.3,3779.7,2.4982]
[1717513500009,2.64531,3780.3,3779.3,2.2663]
[1717513501443,2.64557,3779.9,3779.0,2.4456]
[1717513510774,9.92703,3780.3,3779.7,2.326]
[1717513514189,2.64551,3780.0,3779.7,2.326]
[1717513514898,2.64551,3780.0,3779.1,2.64611]
[1717513515034,2.64551,3780.0,3779.4,2.3566]
[1717513517038,6.864931,3780.0,3778.9,2.3982]
[1717513517247,3.57195052,3779.9,3778.5,2.386]
[1717513518260,3.57195052,3779.9,3779.2,2.3549]
[1717513518783,3.0,3779.9,3779.2,2.3549]
[1717513519969,3.0,3779.9,3778.8,2.478]
[1717513519970,3.57197154,3779.9,3778.8,2.478]
[1717513520578,3.5719774,3779.9,3778.8,2.478]
[1717513520780,4.36799824,3779.9,3778.8,2.478]
[1717513521806,6.86549824,3779.9,3778.5,2.4307]
[1717513525195,6.86549824,3779.9,3778.5,5.07723]
[1717513525399,6.86549824,3779.9,3779.2,2.3237]
[1717513525400,4.36799824,3779.9,3779.2,2.3237]
[1717513526002,4.36800224,3779.9,3779.2,2.3237]
[1717513527302,4.3679828,3779.9,3779.2,2.3237]
[1717513528131,4.36802254,3779.9,3779.2,2.3237]
[1717513528684,4.36802276,3779.9,3779.2,2.3237]
[1717513529119,4.36802276,3779.9,3778.5,2.64653]
[1717513529319,4.36802276,3779.9,3778.9,2.3027]
[1717513530231,8.68472276,3779.9,3778.5,2.3216]
[1717513530401,9.23472276,3779.9,3778.5,2.3216]
[1717513531626,9.23472276,3779.9,3779.8,83.00653671]
[1717513532229,6.77172276,3779.9,3779.8,83.00653671]
[1717513534800,8.64298853,3779.9,3779.8,83.00653671]
[1717513535842,6.77172276,3779.9,3779.8,83.00653671]
[1717513536038,4.36802276,3779.9,3779.8,83.00653671]
[1717513536703,6.65472276,3779.9,3779.8,83.00653671]
[1717513536904,7.20472276,3779.9,3779.8,83.00653671]
[1717513537556,8.52598853,3779.9,3779.8,83.00653671]
[1717513538767,15.80768853,3779.9,3779.8,83.00653671]
[1717513539734,15.80777634,3779.9,3779.8,83.00653671]
[1717513541638,27.91074334,3779.9,3779.8,83.00653671]
[1717513542062,27.91074334,3779.9,3779.8,82.934]
[1717513542252,25.49018634,3779.9,3779.8,82.934]
[1717513542465,25.49018634,3779.9,3779.8,83.00774454]
[1717513544990,25.49018634,3779.9,3779.8,82.73528066]
[1717513546197,25.49027151,3779.9,3779.8,82.73528066]
[1717513547932,2.64703,3777.9,3777.4,2.4035]
[1717513548394,7.2817,3778.3,3777.4,2.4035]
[1717513548395,9.92841,3778.3,3777.4,2.4035]
[1717513548582,0.57225527,3778.2,3777.4,2.4035]
[1717513548776,0.75,3777.8,3777.4,2.64385]
[1717513549089,0.57225527,3778.2,3777.4,2.64385]
[1717513549292,0.75,3778.0,3777.4,2.64385]
[1717513551322,0.75,3778.0,3777.4,2.4035]
[1717513551928,0.75,3778.0,3777.1,1.913]
[1717513551929,0.75,3778.0,3777.0,2.46]
[1717513552127,2.64714,3777.7,3777.0,2.46]
[1717513552452,0.57225628,3777.6,3777.0,2.46]
[1717513552621,3.57225628,3777.6,3777.0,2.46]
[1717513552829,0.75,3777.2,3777.0,2.46]
[1717513557241,0.75,3777.2,3777.0,0.07002234]
[1717513560144,2.64753,3777.1,3777.0,0.07002234]
[1717513560771,5.64753,3777.1,3777.0,0.07002234]
[1717513562031,11.790534,3777.1,3777.0,0.07002234]
[1717513562234,13.11179977,3777.1,3777.0,0.07002234]
[1717513562431,13.66179977,3777.1,3777.0,0.07002234]
[1717513562855,16.64588727,3777.1,3777.0,0.07002234]
[1717513564541,19.29341727,3777.1,3777.0,0.07002234]
[1717513565051,19.29349633,3777.1,3777.0,0.07002234]
[1717513566357,26.57519633,3777.1,3777.0,0.07002234]
[1717513566843,24.16359633,3777.1,3776.9,99.92000775]
[1717513567070,7.20896577,3777.0,3776.9,99.72998775]
[1717513567276,54.22269838,3777.0,3776.9,99.72998775]
[1717513567487,52.89748838,3777.0,3776.9,98.40998775]
[1717513567689,7.78160838,3777.0,3776.9,98.40998775]
[1717513567987,52.82814438,3777.0,3776.9,98.40998775]
[1717513568713,52.82814438,3777.0,3776.9,98.04833841]
[1717513569903,52.82814438,3777.0,3776.9,97.10080873]
[1717513569904,53.82814438,3777.0,3776.9,97.10080873]
[1717513570055,55.74114438,3777.0,3776.9,96.78770273]
[1717513571175,55.74114438,3777.0,3776.9,96.52020273]